bitfinex/quotes_BTCUSD_20250618
["timestamp","ask_amount","ask_price","bid_price","bid_amount"]
[1750271843995,0.43757055,104570.0,104560.0,0.43785161]
[1750271844681,0.01912493,104570.0,104560.0,0.44741467]
[1750271844896,0.66050729,104570.0,104560.0,0.39728837]
[1750271845104,0.65751834,104570.0,104560.0,0.21996837]
[1750271845307,0.44713324,104570.0,104560.0,0.40681161]
[1750271845516,0.43757064,104570.0,104560.0,0.40681161]
[1750271845717,0.44713324,104570.0,104560.0,0.40681161]
[1750271845947,0.45669602,104570.0,104560.0,0.40781161]
[1750271846145,0.44713324,104570.0,104560.0,0.40781161]
[1750271846360,0.78713159,104580.0,104570.0,0.21994725]
[1750271846590,0.98793461,104580.0,104570.0,0.21038492]
[1750271846793,0.99749666,104580.0,104570.0,0.21994743]
[1750271847219,0.98793516,104580.0,104570.0,0.21994743]
[1750271847633,0.98993516,104580.0,104570.0,0.22950976]
[1750271847846,0.98993516,104580.0,104570.0,0.21994743]
[1750271848253,0.99093516,104580.0,104570.0,0.21994743]
[1750271848725,0.99093516,104580.0,104570.0,0.22950985]
[1750271848939,0.01912493,104570.0,104560.0,0.42040485]
[1750271849162,0.65094478,104570.0,104560.0,0.20084152]
[1750271849372,0.64795583,104570.0,104560.0,0.38700522]
[1750271849584,0.63839332,104570.0,104560.0,0.20084152]
[1750271849820,0.53127773,104560.0,104540.0,0.34043399]
[1750271850028,0.79012651,104550.0,104540.0,0.22957561]
[1750271850239,0.79670106,104550.0,104540.0,0.22957561]
[1750271850467,0.76800831,104550.0,104540.0,0.22957561]
[1750271850886,0.34,104550.0,104540.0,0.54494966]
[1750271851111,0.34,104550.0,104540.0,0.54509115]
[1750271852077,0.43757045,104570.0,104560.0,0.21996828]
[1750271852368,0.20540458,104600.0,104570.0,0.21994725]
[1750271852594,5.56305272,104600.0,104590.0,0.19122287]
[1750271852828,0.00956141,104580.0,104570.0,0.23362177]
[1750271853046,0.0191221,104590.0,104580.0,0.21992603]
[1750271853278,0.41990556,104590.0,104580.0,0.21036462]
[1750271853517,0.21912109,104590.0,104580.0,0.21992603]
[1750271853757,0.20956041,104590.0,104580.0,0.21992603]
[1750271853991,0.54956041,104590.0,104580.0,0.21992603]
[1750271854247,0.79668999,104590.0,104580.0,0.21992603]
[1750271854470,0.9982973,104590.0,104580.0,0.20080302]
[1750271854708,0.80625159,104590.0,104580.0,0.21992621]
[1750271855001,0.99747446,104590.0,104580.0,0.21036471]
[1750271855242,0.9974751,104590.0,104580.0,0.21036471]
[1750271855475,1.0014751,104590.0,104580.0,0.21992621]
[1750271855705,1.0074751,104590.0,104580.0,0.21036471]
[1750271855940,0.02868415,104580.0,104570.0,0.19125944]
[1750271856174,0.02868415,104580.0,104550.0,0.22137949]
[1750271856175,0.00956342,104560.0,104550.0,0.26194429]
[1750271856407,0.4501246,104560.0,104550.0,0.22967917]
[1750271856635,1.09875938,104560.0,104550.0,0.00014149]
[1750271856878,5.86025135,104560.0,104550.0,0.00014149]
[1750271857104,5.88832213,104560.0,104550.0,0.00014149]
[1750271858005,5.86025135,104560.0,104550.0,0.00014149]
[1750271858225,5.85068765,104560.0,104550.0,0.00014149]
[1750271859826,5.85068765,104560.0,104550.0,0.20100213]
[1750271860061,5.86025135,104560.0,104550.0,0.19143752]
[1750271860285,5.86025135,104560.0,104550.0,0.00014149]
[1750271860502,5.94683687,104560.0,104550.0,0.00014149]
[1750271860933,5.87943965,104560.0,104550.0,0.00014149]
[1750271861156,5.90813038,104560.0,104550.0,0.20100213]
[1750271861445,5.90813038,104560.0,104550.0,0.21056665]
[1750271861656,6.08469065,104560.0,104550.0,0.20100213]
[1750271861919,6.07512723,104560.0,104550.0,0.20100213]
[1750271862115,6.06556353,104560.0,104550.0,0.20100213]
[1750271863145,6.10850535,104560.0,104550.0,0.00014149]
[1750271863507,6.15850535,104560.0,104550.0,0.00014149]
[1750271863706,6.15850535,104560.0,104550.0,0.00056949]
[1750271864298,6.08494436,104560.0,104550.0,0.00056949]
[1750271864534,6.13494436,104560.0,104550.0,0.00056949]
[1750271864765,6.13694436,104560.0,104550.0,0.00056949]
[1750271864965,6.08694436,104560.0,104550.0,0.00056949]
[1750271865198,6.13694436,104560.0,104550.0,0.00056949]
[1750271865405,6.23309358,104560.0,104550.0,0.00056949]
[1750271865796,6.01723654,104560.0,104550.0,0.00056949]
[1750271866003,5.89309358,104560.0,104550.0,0.00056949]
[1750271866210,5.89409358,104560.0,104550.0,0.00056949]
[1750271867398,5.79794436,104560.0,104550.0,0.00056949]
[1750271867990,6.13794436,104560.0,104550.0,0.00056949]
[1750271869005,6.45229567,104560.0,104550.0,0.00056949]
[1750271869442,0.55046524,104530.0,104520.0,0.13875405]
[1750271869652,5.70226405,104530.0,104520.0,0.07665405]
[1750271869860,5.7168049,104530.0,104520.0,0.07665405]
[1750271870064,5.81304666,104530.0,104520.0,0.07665405]
[1750271870502,5.83039826,104530.0,104520.0,0.26800498]
[1750271870716,5.83039826,104530.0,104520.0,0.36010632]
[1750271870717,0.34,104530.0,104520.0,0.36010632]
[1750271870924,0.24132821,104550.0,104530.0,0.29298244]
[1750271870925,0.72074488,104540.0,104530.0,0.29298244]
[1750271871338,0.73031013,104540.0,104530.0,0.29298244]
[1750271871546,0.9407556,104540.0,104530.0,0.27385037]
[1750271871997,0.9407556,104540.0,104530.0,0.28341645]
[1750271872207,0.7494411,104540.0,104530.0,0.29298244]
[1750271872418,0.73131013,104540.0,104530.0,0.29298244]
[1750271872629,0.9417556,104540.0,104530.0,0.28341645]
[1750271872877,0.93219053,104540.0,104530.0,0.27385037]
[1750271873099,0.91405975,104540.0,104530.0,0.0634]
[1750271873326,0.20091838,104520.0,104510.0,0.25730071]
[1750271873535,6.35015961,104520.0,104510.0,0.00024152]
[1750271874687,6.37892261,104520.0,104510.0,0.00024152]
[1750271875147,5.41727717,104510.0,104500.0,0.0001]
[1750271875353,5.51351893,104510.0,104500.0,0.0001]
[1750271875562,5.51351893,104510.0,104500.0,0.21062584]
[1750271875563,5.47308711,104510.0,104500.0,0.21062584]
[1750271875778,0.69246811,104510.0,104500.0,0.26295683]
[1750271875992,5.46351893,104510.0,104500.0,0.0001]
[1750271876627,5.52989047,104510.0,104500.0,0.0001]
[1750271876838,5.46451893,104510.0,104500.0,0.0001]
[1750271877050,5.64011893,104510.0,104500.0,0.0001]
[1750271877284,5.69011893,104510.0,104500.0,0.0001]
[1750271877701,6.03011893,104510.0,104500.0,0.0001]
[1750271877931,6.12926815,104510.0,104500.0,0.0001]
[1750271878365,6.13126815,104510.0,104500.0,0.0001]
[1750271879001,0.59095674,104500.0,104490.0,0.0001]
[1750271879250,6.01435731,104500.0,104490.0,0.0001]
[1750271879472,6.0762767,104500.0,104490.0,0.0001]
[1750271879688,6.09081755,104500.0,104490.0,0.0001]
[1750271879904,0.22972935,104470.0,104460.0,0.34272116]
[1750271880124,0.57117981,104470.0,104460.0,0.37143899]
[1750271880345,0.56510699,104480.0,104470.0,0.0622]
[1750271880600,0.53144251,104470.0,104460.0,0.33041489]
[1750271880814,0.34,104470.0,104460.0,0.34956041]
[1750271881042,0.37828665,104470.0,104460.0,0.35913281]
[1750271881250,0.98034868,104470.0,104460.0,0.06277193]
[1750271881463,0.97834868,104470.0,104460.0,0.26380581]
[1750271881675,0.97834868,104470.0,104460.0,0.28295161]
[1750271881885,0.97834868,104470.0,104460.0,0.29252437]
[1750271882097,1.07955954,104470.0,104460.0,0.06277193]
[1750271882312,1.07955954,104470.0,104460.0,0.26380581]
[1750271882526,6.0718243,104470.0,104460.0,0.00257193]
[1750271882959,6.03581854,104470.0,104460.0,0.00257193]
[1750271883393,6.06485624,104470.0,104460.0,0.00357193]
[1750271883822,6.08581854,104470.0,104460.0,0.00057193]
[1750271884034,6.11485624,104470.0,104460.0,0.00057193]
[1750271884265,5.24197364,104470.0,104460.0,0.26310562]
[1750271884476,0.341,104470.0,104460.0,0.35890474]
[1750271884706,0.001,104470.0,104460.0,0.35890474]
[1750271884922,0.002,104470.0,104460.0,0.4551465]
[1750271885347,0.001,104470.0,104460.0,0.4551465]
[1750271885843,0.001,104470.0,104460.0,0.4571465]
[1750271886092,0.001,104470.0,104460.0,0.38049245]
[1750271886326,0.42776239,104470.0,104460.0,0.43017014]
[1750271886575,0.36771261,104480.0,104470.0,0.25055777]
[1750271886896,0.78590398,104480.0,104470.0,0.28185777]
[1750271887048,0.795475,104480.0,104470.0,0.28185777]
[1750271887517,0.22971025,104500.0,104490.0,0.20097598]
[1750271887729,0.22011564,104490.0,104480.0,0.0729712]
[1750271887952,0.63830838,104490.0,104480.0,0.2739665]
[1750271888216,0.63830838,104490.0,104480.0,0.29310845]
[1750271888461,0.97830838,104490.0,104480.0,0.29310845]
[1750271888920,0.98030838,104490.0,104480.0,0.3026792]
[1750271889144,0.98030838,104490.0,104480.0,0.29310845]
[1750271889371,0.98130838,104490.0,104480.0,0.30267929]
[1750271889601,0.98130838,104490.0,104480.0,0.29310845]
[1750271889846,0.35914159,104480.0,104470.0,0.45967796]
[1750271890063,1.00704095,104480.0,104470.0,0.28355833]
[1750271890287,0.79647454,104480.0,104470.0,0.30270156]
[1750271890526,0.99746975,104480.0,104470.0,0.29313008]
[1750271890785,0.80604556,104480.0,104470.0,0.30270174]
[1750271891003,0.80604556,104480.0,104470.0,0.30370119]
[1750271891004,1.00704086,104480.0,104470.0,0.30370119]
[1750271891230,0.9974703,104480.0,104470.0,0.29412971]
[1750271891468,0.98789964,104480.0,104470.0,0.27498648]
[1750271891679,0.98789964,104480.0,104470.0,0.28455777]
[1750271891680,0.76776239,104480.0,104470.0,0.28455777]
[1750271892115,0.77733286,104480.0,104470.0,0.28455777]
[1750271892566,0.99746956,104480.0,104470.0,0.27498629]
[1750271892754,0.98789909,104480.0,104470.0,0.27498648]
[1750271892973,0.98789909,104480.0,104470.0,0.28455833]
[1750271893198,0.98789909,104480.0,104470.0,0.29413008]
[1750271893428,0.34957047,104480.0,104470.0,0.30370156]
[1750271893663,0.34,104480.0,104470.0,0.30370156]
[1750271893872,0.34957047,104480.0,104470.0,0.30370156]
[1750271894106,0.43733286,104480.0,104470.0,0.30370156]
[1750271894349,0.77733286,104480.0,104470.0,0.30370156]
[1750271894626,0.79647436,104480.0,104470.0,0.30370156]
[1750271894866,0.36871188,104480.0,104470.0,0.30370156]
[1750271895082,0.78690352,104480.0,104470.0,0.30370156]
[1750271895307,0.77733286,104480.0,104470.0,0.30370156]
[1750271895514,0.79647463,104480.0,104470.0,0.30370156]
[1750271895988,0.78690361,104480.0,104470.0,0.30370156]
[1750271896210,0.78690352,104480.0,104470.0,0.30370156]
[1750271896518,0.76776239,104480.0,104470.0,0.30370156]
[1750271896722,0.3591414,104480.0,104470.0,0.47962156]
[1750271897163,0.77733295,104480.0,104470.0,0.47962156]
[1750271897578,0.79647454,104480.0,104470.0,0.47930156]
[1750271897789,0.79647445,104480.0,104470.0,0.47930156]
[1750271898006,0.76776239,104480.0,104470.0,0.47930156]
[1750271898453,0.34,104480.0,104470.0,0.47930156]
[1750271898918,0.34,104480.0,104470.0,0.57554332]
[1750271900279,5.42843357,104520.0,104510.0,0.23293761]
[1750271900522,5.33829789,104520.0,104510.0,0.25207406]
[1750271900739,5.33829789,104520.0,104510.0,0.27120997]
[1750271900740,5.3620864,104520.0,104510.0,0.27120997]
[1750271900956,5.50658021,104520.0,104510.0,0.29304215]
[1750271901176,5.51155425,104520.0,104510.0,0.29304215]
[1750271901409,5.32020332,104520.0,104510.0,0.30260997]
[1750271901631,5.50212808,104520.0,104510.0,0.29304215]
[1750271902050,5.65077715,104520.0,104510.0,0.30261015]
[1750271902271,0.02890328,104520.0,104510.0,0.3026096]
[1750271902510,0.00014128,104520.0,104510.0,0.52774541]
[1750271902728,0.00014128,104520.0,104510.0,0.45109136]
[1750271903208,0.00014128,104520.0,104510.0,0.52774541]
[1750271903696,0.00014128,104520.0,104510.0,0.53174541]
[1750271904158,0.00014128,104520.0,104510.0,0.52974541]
[1750271904630,0.00014128,104520.0,104510.0,0.53774541]
[1750271904870,0.00014128,104520.0,104510.0,0.53574541]
[1750271905123,0.00970809,104520.0,104510.0,0.40685136]
[1750271905367,0.7306129,104520.0,104510.0,0.3166096]
[1750271905586,0.74018017,104520.0,104510.0,0.4916496]
[1750271905798,0.72104582,104520.0,104510.0,0.4916496]
[1750271906282,0.7114791,104520.0,104510.0,0.4916496]
[1750271906489,0.7114791,104520.0,104510.0,0.4856096]
[1750271906700,0.72104582,104520.0,104510.0,0.4776096]
[1750271906910,0.34014128,104520.0,104510.0,0.4896096]
[1750271907114,0.34014128,104520.0,104510.0,0.4826096]
[1750271907463,0.34014128,104520.0,104510.0,0.58085136]
[1750271907913,0.34014128,104520.0,104510.0,0.57585136]
[1750271908442,0.34014128,104520.0,104510.0,0.57985136]
[1750271908848,0.00014128,104520.0,104510.0,0.57985136]
[1750271909457,5e-05,104540.0,104530.0,0.22003142]
[1750271909678,5e-05,104540.0,104530.0,0.60587318]
[1750271911225,5e-05,104540.0,104530.0,0.60787318]
[1750271911643,5e-05,104570.0,104560.0,0.21996828]
[1750271911857,0.00019149,104570.0,104560.0,0.45962828]
[1750271912069,0.00019149,104570.0,104560.0,0.60763004]
[1750271913560,0.00019149,104570.0,104560.0,0.61963004]
[1750271913980,0.00019149,104570.0,104560.0,0.60763004]
[1750271914194,0.00019149,104570.0,104560.0,0.61163004]
[1750271914422,0.00019149,104570.0,104560.0,1.0429817]
[1750271914633,5e-05,104610.0,104600.0,0.28338415]
[1750271914842,0.00052146,104610.0,104600.0,0.45790415]
[1750271915268,0.00350904,104610.0,104600.0,0.45790415]
[1750271915707,0.00052146,104610.0,104600.0,0.55414591]
[1750271916562,0.00052146,104610.0,104600.0,0.55614591]
[1750271916774,0.00052146,104610.0,104600.0,0.55814591]
[1750271917865,0.00052146,104610.0,104600.0,0.98549757]
[1750271918305,5e-05,104630.0,104620.0,0.21984213]
[1750271918512,5e-05,104630.0,104620.0,0.60664389]
[1750271918513,0.00019138,104630.0,104620.0,0.60664389]
[1750271918722,0.00019138,104630.0,104620.0,0.38068389]
[1750271918993,0.42754304,104630.0,104620.0,0.38068389]
[1750271919202,0.7770997,104630.0,104620.0,0.45856213]
[1750271919422,0.76754304,104630.0,104620.0,0.42676213]
[1750271919632,0.76754304,104630.0,104620.0,0.43676213]
[1750271920053,0.76754304,104630.0,104620.0,0.39896213]
[1750271920263,0.76854304,104630.0,104620.0,0.39396213]
[1750271920474,0.76854304,104630.0,104620.0,0.39492213]
[1750271920895,0.77809979,104630.0,104620.0,0.39492213]
[1750271921102,0.76854304,104630.0,104620.0,0.39492213]
[1750271921803,0.34119138,104630.0,104620.0,0.42502213]
[1750271922260,0.35074804,104630.0,104620.0,0.42502213]
[1750271922513,0.76854304,104630.0,104620.0,0.39492213]
[1750271922737,0.34119138,104630.0,104620.0,0.45552213]
[1750271924417,0.76854304,104630.0,104620.0,0.42482213]
[1750271924865,0.34119138,104630.0,104620.0,0.42482213]
[1750271925314,0.34119138,104630.0,104620.0,0.45512213]
[1750271926542,0.34119138,104630.0,104620.0,0.55136389]
[1750271926800,0.00119138,104630.0,104620.0,0.55136389]
[1750271927742,0.00119138,104630.0,104620.0,0.60292389]
[1750271928473,0.00119138,104630.0,104620.0,0.97317235]
[1750271928951,0.00119138,104630.0,104620.0,0.97217235]
[1750271929217,0.00019138,104630.0,104620.0,1.2163532]
[1750271929452,5e-05,104650.0,104640.0,0.2825001]
[1750271929691,5e-05,104650.0,104640.0,0.92299032]
[1750271929916,5e-05,104650.0,104640.0,0.94887191]
[1750271930138,5e-05,104650.0,104640.0,0.95269991]
[1750271930604,5e-05,104650.0,104640.0,0.37874186]
[1750271930840,0.37029846,104650.0,104640.0,0.43046186]
[1750271931092,0.34005,104650.0,104640.0,0.56174186]
[1750271931337,0.76632858,104650.0,104640.0,0.4029201]
[1750271931600,0.34005,104650.0,104640.0,0.4029201]
[1750271931801,0.34005,104650.0,104640.0,0.3979201]
[1750271932065,0.34005,104650.0,104640.0,0.3939201]
[1750271932281,0.34005,104650.0,104640.0,0.4250201]
[1750271932457,0.34005,104650.0,104640.0,0.4632201]
[1750271933019,0.34005,104650.0,104640.0,0.4662201]
[1750271933251,0.34005,104650.0,104640.0,0.4592201]
[1750271933663,0.34005,104650.0,104640.0,0.4602201]
[1750271933913,0.34005,104650.0,104640.0,0.4592201]
[1750271934161,0.34005,104650.0,104640.0,0.4622201]
[1750271934739,5e-05,104650.0,104640.0,0.55846186]
[1750271935798,5e-05,104650.0,104640.0,0.55546186]
[1750271936014,5e-05,104650.0,104640.0,0.55246186]
[1750271936223,5e-05,104650.0,104640.0,0.56146186]
[1750271938609,5e-05,104650.0,104640.0,0.98774044]
[1750271939461,5e-05,104650.0,104640.0,0.58734345]
[1750271939672,5e-05,104650.0,104640.0,0.56146186]
[1750271940330,5e-05,104650.0,104640.0,0.38734186]
[1750271940586,5e-05,104650.0,104640.0,0.61222186]
[1750271942864,5e-05,104650.0,104640.0,1.03850044]
[1750271943323,5e-05,104650.0,104640.0,0.61222186]
[1750271943551,0.56978273,104680.0,104670.0,0.21973711]
[1750271943784,0.76627858,104680.0,104670.0,0.39405711]
[1750271944048,0.34014135,104680.0,104670.0,0.39405711]
[1750271944314,0.99568842,104680.0,104670.0,0.2101841]
[1750271944538,1.02748842,104680.0,104670.0,0.22929094]
[1750271944772,1.01793632,104680.0,104670.0,0.22929094]
[1750271945009,0.34955356,104670.0,104660.0,0.19109497]
[1750271945243,0.39090647,104670.0,104660.0,0.22931248]
[1750271945468,0.35910647,104670.0,104660.0,0.22931248]
[1750271945716,0.34,104670.0,104660.0,0.22931248]
[1750271945949,0.44538505,104670.0,104660.0,0.21975838]
[1750271946183,0.34955429,104660.0,104650.0,0.21020528]
[1750271946406,0.79494135,104660.0,104650.0,0.38516528]
[1750271946614,0.78538688,104660.0,104650.0,0.38516528]
[1750271946832,0.79494126,104660.0,104650.0,0.38516528]
[1750271947094,0.78538679,104660.0,104650.0,0.38532528]
[1750271947292,0.002,104670.0,104660.0,0.2197581]
[1750271947492,0.01453912,104670.0,104660.0,0.2197581]
[1750271947950,0.36879901,104680.0,104670.0,0.19107671]
[1750271948159,0.89630719,104680.0,104670.0,0.21973711]
[1750271948383,1.1160235,104680.0,104670.0,0.21018392]
[1750271948592,0.01910657,104670.0,104660.0,0.38544308]
[1750271948808,0.45792449,104670.0,104660.0,0.17524]
[1750271949020,5.29719579,104680.0,104670.0,0.20063054]
[1750271949228,5.7182792,104680.0,104670.0,0.21973747]
[1750271949444,6.0150398,104680.0,104670.0,0.2101841]
[1750271949667,5.85228134,104680.0,104670.0,0.21973747]
[1750271949873,5.85328134,104680.0,104670.0,0.21973747]
[1750271950096,6.0443398,104680.0,104670.0,0.21973747]
[1750271950308,6.0443398,104680.0,104670.0,0.2101841]
[1750271950521,5.74757984,104680.0,104670.0,0.21973793]
[1750271950729,5.72327911,104680.0,104670.0,0.23884413]
[1750271950965,0.83563774,104680.0,104670.0,0.23884413]
[1750271951178,0.83463774,104680.0,104670.0,0.23884413]
[1750271951393,0.00414135,104680.0,104670.0,0.23884413]
[1750271951610,0.37928871,104680.0,104670.0,0.23884413]
[1750271951822,0.35910629,104670.0,104660.0,0.39475801]
[1750271952040,0.72926843,104670.0,104660.0,0.20064953]
[1750271952284,0.71971469,104670.0,104660.0,0.21975801]
[1750271952494,0.72926815,104670.0,104660.0,0.21975801]
[1750271952713,0.92034486,104670.0,104660.0,0.20064953]
[1750271952926,1.18277761,104670.0,104660.0,0.19109497]
[1750271953136,0.36965948,104670.0,104660.0,0.2197581]
[1750271953349,0.75137472,104670.0,104660.0,0.2197581]
[1750271953585,0.74182116,104670.0,104660.0,0.2197581]
[1750271953798,0.72271469,104670.0,104660.0,0.2197581]
[1750271954032,0.72271487,104670.0,104660.0,0.2197581]
[1750271954244,1.16665841,104670.0,104660.0,0.20064953]
[1750271954458,0.00955429,104660.0,104650.0,0.39520048]
[1750271954666,0.38270218,104660.0,104650.0,0.39520048]
[1750271954911,0.38927035,104660.0,104650.0,0.39520048]
[1750271955129,0.39882436,104660.0,104650.0,0.39520048]
[1750271955345,0.37016168,104660.0,104650.0,0.39520048]
[1750271955559,0.37971578,104660.0,104650.0,0.21728048]
[1750271955768,0.37016168,104660.0,104650.0,0.21728048]
[1750271955974,0.3797156,104660.0,104650.0,0.21728048]
[1750271956193,0.85921657,104670.0,104660.0,0.2197581]
[1750271956412,5.52905296,104670.0,104660.0,0.2197581]
[1750271956624,5.54815953,104670.0,104660.0,0.2197581]
[1750271956833,5.50988697,104670.0,104660.0,0.2197581]
[1750271957040,5.51944044,104670.0,104660.0,0.2197581]
[1750271958333,5.52244044,104670.0,104660.0,0.22931239]
[1750271958539,5.73761256,104670.0,104660.0,0.20064962]
[1750271958771,5.2535079,104670.0,104660.0,0.21975829]
[1750271958984,5.63322305,104670.0,104660.0,0.22931239]
[1750271959220,5.84107966,104670.0,104660.0,0.21020409]
[1750271959429,5.83152638,104670.0,104660.0,0.21020409]
[1750271959645,5.83152638,104670.0,104660.0,0.19109497]
[1750271959856,5.62367041,104670.0,104660.0,0.21975838]
[1750271960082,5.82430095,104670.0,104660.0,0.21975838]
[1750271960301,5.82430095,104670.0,104660.0,0.20064971]
[1750271960515,5.79564,104670.0,104660.0,0.20064971]
[1750271960962,5.62745093,104670.0,104660.0,0.20064971]
[1750271961181,5.29322405,104670.0,104660.0,0.22931294]
[1750271961399,4.90395471,104670.0,104660.0,0.23886704]
[1750271961605,5.30277669,104670.0,104660.0,0.23886704]
[1750271961787,5.3027766,104670.0,104660.0,0.23886704]
[1750271961995,5.30277651,104670.0,104660.0,0.23886704]
[1750271962207,5.31233016,104670.0,104660.0,0.23886704]
[1750271962428,0.003,104670.0,104660.0,0.23886704]
[1750271962882,0.003,104670.0,104660.0,0.27016704]
[1750271963089,0.00598592,104670.0,104660.0,0.30316704]
[1750271963299,0.37316168,104670.0,104660.0,0.30316704]
[1750271963509,0.003,104670.0,104660.0,0.30316704]
[1750271963952,0.73525372,104670.0,104660.0,0.41362704]
[1750271964164,0.74182116,104670.0,104660.0,0.41362704]
[1750271964361,0.80905877,104670.0,104660.0,0.41362704]
[1750271964563,0.73226779,104670.0,104660.0,0.41362704]
[1750271964789,0.74182098,104670.0,104660.0,0.41362704]
[1750271964908,0.75137426,104670.0,104660.0,0.41362704]
[1750271965107,0.76092827,104670.0,104660.0,0.41366704]
[1750271965316,0.38271478,104670.0,104660.0,0.41366704]
[1750271965746,0.39226806,104670.0,104660.0,0.41366704]
[1750271966150,0.36866286,104660.0,104650.0,0.19817054]
[1750271966368,0.74837901,104660.0,104650.0,0.21728085]
[1750271966577,0.73882445,104660.0,104650.0,0.22683605]
[1750271966778,0.74837901,104660.0,104650.0,0.22683605]
[1750271967202,0.73882445,104660.0,104650.0,0.22683605]
[1750271967413,0.72926998,104660.0,104650.0,0.22683605]
[1750271967846,0.73882454,104660.0,104650.0,0.22683605]
[1750271968264,0.83497376,104660.0,104650.0,0.22683605]
[1750271968475,0.71971569,104660.0,104650.0,0.22683605]
[1750271968680,0.71016168,104660.0,104650.0,0.25823605]
[1750271968895,0.71971578,104660.0,104650.0,0.25823605]
[1750271969104,0.72171578,104660.0,104650.0,0.25823605]
[1750271969326,0.72171569,104660.0,104650.0,0.25823605]
[1750271969537,0.74082417,104660.0,104650.0,0.22683605]
[1750271969756,0.73126979,104660.0,104650.0,0.22683605]
[1750271970220,0.74182408,104660.0,104650.0,0.22683605]
[1750271970424,0.74182399,104660.0,104650.0,0.22683605]
[1750271970635,1.01951472,104660.0,104650.0,0.19111323]
[1750271970850,1.01951472,104660.0,104650.0,0.00955566]
[1750271970851,1.13029733,104660.0,104650.0,0.00955566]
[1750271971065,0.00955538,104650.0,104640.0,0.3943591]
[1750271971270,0.72270308,104650.0,104640.0,0.3943591]
[1750271971481,0.72927163,104650.0,104640.0,0.2197991]
[1750271971903,0.34955484,104650.0,104640.0,0.2197991]
[1750271972111,0.34955484,104650.0,104640.0,0.2834991]
[1750271972112,0.34,104650.0,104640.0,0.2834991]
[1750271973195,0.71971661,104650.0,104640.0,0.2522991]
[1750271973398,0.71016168,104650.0,104640.0,0.4266991]
[1750271973622,0.71971652,104650.0,104640.0,0.4266991]
[1750271973830,0.73882683,104650.0,104640.0,0.3941591]
[1750271974070,0.73882674,104650.0,104640.0,0.2197991]
[1750271974273,0.72927145,104650.0,104640.0,0.2197991]
[1750271974485,1.05027869,104650.0,104640.0,0.2198002]
[1750271974690,0.85916546,104650.0,104640.0,0.2198002]
[1750271974899,0.85916546,104650.0,104640.0,0.22935613]
[1750271975099,0.47944821,104650.0,104640.0,0.22935613]
[1750271975307,0.84960989,104650.0,104640.0,0.22935613]
[1750271975521,0.35911213,104640.0,104630.0,0.19113341]
[1750271975730,0.7388302,104640.0,104630.0,0.40344224]
[1750271975936,0.7388302,104640.0,104630.0,0.22936224]
[1750271976156,0.7388302,104640.0,104620.0,0.20072579]
[1750271976157,0.01911743,104610.0,104600.0,0.23220074]
[1750271976362,0.79781019,104610.0,104600.0,0.21042475]
[1750271976610,0.79781019,104610.0,104600.0,0.22954447]
[1750271976611,0.93958377,104610.0,104600.0,0.22954447]
[1750271976843,0.95506135,104610.0,104600.0,0.2392458]
[1750271977052,0.9359441,104610.0,104600.0,0.20100618]
[1750271977265,0.9359441,104610.0,104600.0,0.21056622]
[1750271977467,0.9359441,104610.0,104600.0,0.22968585]
[1750271977673,0.94550341,104610.0,104600.0,0.22968585]
[1750271977920,0.93594373,104610.0,104600.0,0.23924543]
[1750271978120,0.95506162,104610.0,104600.0,0.22968603]
[1750271978322,1.0467268,104610.0,104600.0,0.00024138]
[1750271978591,5.81978667,104610.0,104600.0,0.00024138]
[1750271978920,5.82078667,104610.0,104600.0,0.00024138]
[1750271979333,5.82078667,104610.0,104600.0,0.21056613]
[1750271979534,5.62004105,104610.0,104600.0,0.21056613]
[1750271979741,0.85853985,104610.0,104600.0,0.22968539]
[1750271979938,0.35847776,104610.0,104600.0,0.26068539]
[1750271980095,0.36803634,104610.0,104600.0,0.29328539]
[1750271980295,0.35847776,104610.0,104600.0,0.29028539]
[1750271980518,0.343,104610.0,104600.0,0.29028539]
[1750271980718,0.343,104610.0,104600.0,0.46420539]
[1750271982079,0.73227893,104610.0,104600.0,0.46420539]
[1750271982480,0.72272017,104610.0,104600.0,0.46420539]
[1750271982697,0.74183769,104610.0,104600.0,0.46420539]
[1750271982945,0.38123514,104610.0,104600.0,0.46420539]
[1750271983144,0.74183769,104610.0,104600.0,0.46420539]
[1750271983268,0.75139664,104610.0,104600.0,0.46420539]
[1750271983476,0.71316168,104610.0,104600.0,0.46420539]
[1750271983751,0.72272017,104610.0,104600.0,0.46420539]
[1750271983974,0.73227875,104610.0,104600.0,0.46420539]
[1750271984191,0.75139673,104610.0,104600.0,0.46420539]
[1750271984471,0.75139664,104610.0,104600.0,0.46420539]
[1750271984694,0.75139637,104610.0,104600.0,0.46420539]
[1750271984912,0.7609555,104610.0,104600.0,0.46420539]
[1750271985136,0.95214263,104610.0,104600.0,0.25480458]
[1750271985377,0.5694441,104600.0,104590.0,0.42590664]
[1750271985612,0.93960642,104600.0,104590.0,0.24274614]
[1750271985837,0.01912109,104590.0,104580.0,0.28097291]
[1750271986037,0.74183181,104590.0,104580.0,0.45433291]
[1750271986238,0.72928277,104590.0,104580.0,0.45433291]
[1750271986446,0.34956041,104590.0,104580.0,0.45433291]
[1750271986649,0.359121,104590.0,104580.0,0.28097291]
[1750271986904,0.7484045,104590.0,104580.0,0.21942291]
[1750271987445,0.93962737,104590.0,104580.0,0.21186159]
[1750271987567,1.12350906,104590.0,104580.0,0.2022999]
[1750271987773,0.35912091,104590.0,104580.0,0.23298478]
[1750271987997,0.7292825,104590.0,104580.0,0.29758478]
[1750271988235,0.3686815,104590.0,104580.0,0.29558478]
[1750271988461,0.37824236,104590.0,104580.0,0.29558478]
[1750271988671,0.73884318,104590.0,104580.0,0.29558478]
[1750271988893,0.757965,104590.0,104580.0,0.23098478]
[1750271989111,0.74840395,104590.0,104580.0,0.23098478]
[1750271989353,0.75796491,104590.0,104580.0,0.22898478]
[1750271989795,0.74840395,104590.0,104580.0,0.22898478]
[1750271990229,0.73884318,104590.0,104580.0,0.22898478]
[1750271990475,0.73884318,104590.0,104550.0,0.21045555]
[1750271990476,0.02869055,104560.0,104550.0,0.21045555]
[1750271990678,1.28415393,104560.0,104550.0,0.0001]
[1750271990921,6.19351,104560.0,104550.0,0.0001]
[1750271991139,6.36651,104560.0,104550.0,0.0001]
[1750271991365,6.34556649,104560.0,104550.0,0.0001]
[1750271991614,6.34756649,104560.0,104550.0,0.0001]
[1750271991873,6.34756649,104560.0,104550.0,0.00057146]
[1750271992073,0.67275153,104560.0,104550.0,0.21099644]
[1750271992285,1.04291321,104560.0,104550.0,0.2014321]
[1750271992497,0.84207169,104560.0,104550.0,0.2014321]
[1750271992706,0.84963548,104560.0,104550.0,0.22056087]
[1750271992919,1.04091321,104560.0,104550.0,0.22056087]
[1750271993185,1.03734969,104560.0,104550.0,0.19186749]
[1750271993403,1.04134969,104560.0,104550.0,0.20143229]
[1750271993625,1.0317859,104560.0,104550.0,0.00057146]
[1750271994693,6.26153448,104560.0,104550.0,0.00057146]
[1750271996552,6.31743448,104560.0,104550.0,0.00057146]
[1750271996784,6.31743448,104560.0,104500.0,0.2648545]
[1750271996785,0.01913572,104510.0,104500.0,0.2648545]
[1750271997023,0.73228678,104510.0,104500.0,0.28399224]